lending/lending_fUSD_20240610
["ID","MTS","AMOUNT","RATE_DAILY","PERIOD"]
[328913775,1717982902659,-219.6763,0.00013899,2]
[328913776,1717982902685,-17655.9488,0.00013899,2]
[328913777,1717982902708,-318.93601991,0.00013899,2]
[328913778,1717982902733,-167.29970156,0.00013899,2]
[328913779,1717982902759,-162.64611011,0.00013943,2]
[328913780,1717982902782,-381.42,0.00013989,3]
[328913781,1717982902805,-152.3,0.0001399,2]
[328913782,1717982902830,-6605.72864947,0.00013997,2]
[328913783,1717982902854,-7260.38961722,0.00013997,2]
[328913784,1717982902878,-2099.38040906,0.00013997,2]
[328913785,1717982902902,-1901.41285593,0.00013997,2]
[328913786,1717982902926,-885.98371482,0.00013997,2]
[328913787,1717982902948,-157.16429918,0.00013998,2]
[328913788,1717982902971,-1931.97,0.00013998,2]
[328913789,1717982902999,-10010.01274902,0.00013998,2]
[328913790,1717982903024,-222857.18537311,0.00013999,2]
[328913791,1717982943894,150.0,0.00010424,2]
[328913792,1717982943924,2403.27367181,0.00010424,2]
[328913793,1717982954320,-999.99174,0.00013621,2]
[328913794,1717982959106,-17.75590643,0.00013621,2]
[328913795,1717982959132,-26078.44732991,0.00013899,2]
[328913796,1717982960563,2553.27367181,0.00010499,2]
[328913797,1717982961151,-6943.5053861,0.00013899,2]
[328913798,1717982964084,-17177.51186168,0.00013899,2]
[328913799,1717982975817,2553.27367181,0.00010499,2]
[328913804,1717983032723,-150.0,0.00013898,2]
[328913806,1717983032733,-201.64148981,0.00013898,2]
[328913808,1717983032744,-89.64675336,0.00013899,2]
[328913817,1717983033436,-523.83620966,0.00013899,2]
[328913820,1717983033448,-330.79,0.00013899,2]
[328913822,1717983033462,-1023.95631012,0.00013899,2]
[328913866,1717983039337,-2393.83765961,0.00013898,2]
[328913867,1717983039351,-424.33774844,0.00013898,2]
[328913868,1717983039363,-760.05397092,0.00013898,2]
[328913869,1717983039375,-2021.65963838,0.00013898,2]
[328913870,1717983039386,-472.01752686,0.00013899,2]
[328913871,1717983039397,-1050.19942002,0.00013999,5]
[328913872,1717983039407,-499.99,0.00013999,2]
[328913873,1717983039418,-7139.65714698,0.00013999,2]
[328913874,1717983039431,-1351.37335133,0.00013999,2]
[328913875,1717983039518,-6146.77216308,0.00013999,2]
[328913876,1717983039532,-567.6803,0.00013999,2]
[328913877,1717983039544,-11991.44661546,0.00013999,2]
[328913878,1717983039556,-2023.19475362,0.00013999,2]
[328913879,1717983039569,-1392.51562301,0.00013999,2]
[328913880,1717983039581,-453.72,0.00013999,2]
[328913881,1717983040070,-29347.69973184,0.00013999,2]
[328913882,1717983040082,-14885.66684933,0.00013999,2]
[328913886,1717983043049,-304.184176,0.00013999,2]
[328913887,1717983043121,-8902.71449928,0.00013999,2]
[328913888,1717983043133,-8947.21879473,0.00013999,2]
[328913889,1717983043145,-8943.78386462,0.00013999,2]
[328913890,1717983043157,-9077.54866152,0.00013999,2]
[328913891,1717983043169,-8943.84023489,0.00013999,2]
[328913894,1717983043715,-263.84212997,0.00013999,2]
[328913895,1717983043763,12135.97357868,0.00010499,2]
[328913896,1717983043787,17195.14571816,0.00010499,2]
[328913897,1717983043813,17289.29969113,0.00010499,2]
[328913898,1717983043839,150.0,0.00010499,2]
[328913899,1717983043865,150.0,0.00010499,2]
[328913900,1717983043889,150.0,0.00010499,2]
[328913901,1717983043914,150.0,0.00010499,2]
[328913902,1717983043938,150.0,0.00010499,2]
[328913903,1717983043963,150.0,0.00010499,2]
[328913904,1717983043988,150.0,0.00010499,2]
[328913905,1717983044012,150.0,0.00010499,2]
[328913909,1717983044039,150.0,0.00010499,2]
[328913910,1717983044064,150.0,0.00010499,2]
[328913911,1717983044092,150.0,0.00010499,2]
[328913912,1717983044284,150.0,0.00010499,2]
[328913913,1717983044309,150.0,0.00010499,2]
[328913914,1717983044334,150.0,0.00010499,2]
[328913915,1717983044358,150.0,0.00010499,2]
[328913916,1717983044386,158853.64566301,0.00010499,2]
[328913917,1717983044424,-1141.19813637,0.00013999,2]
[328913918,1717983044435,-3459.52417263,0.00013999,2]
[328913919,1717983044446,-2203.31541309,0.00013999,2]
[328913920,1717983044458,-3799.999993,0.00013999,2]
[328913921,1717983044471,-1367.25011,0.00013999,2]
[328913922,1717983044503,-2399.04532457,0.00013999,2]
[328913923,1717983044515,-2391.02273755,0.00013999,2]
[328913924,1717983044526,-403.22850324,0.00013999,2]
[328913925,1717983044538,-695.84866301,0.00013999,2]
[328913926,1717983045165,-731.4392052,0.00013999,2]
[328913928,1717983045177,-20301.62707845,0.00013999,2]
[328913929,1717983045188,-1209.47228667,0.00013999,2]
[328913930,1717983045199,-1032.58964787,0.00013999,2]
[328913931,1717983045211,-2871.22460574,0.00013999,2]
[328913934,1717983046147,150.0,0.00010499,2]
[328913935,1717983046174,1003.25481668,0.00010499,2]
[328913940,1717983049735,192.65551922,0.00029979,120]
[328913941,1717983060252,150.0,0.00010499,2]
[328913942,1717983060278,150.0,0.00010499,2]
[328913943,1717983083688,57361.69113797,0.00010499,2]
[328913944,1717983098728,150.0,0.00012,2]
[328913945,1717983098757,2465.36074881,0.00012,2]
[328913946,1717983140565,33169.21133283,0.00012,2]
[328913947,1717983156740,150.0,0.00012,2]
[328913948,1717983156763,150.0,0.00012,2]
[328913949,1717983156787,150.0,0.00012,2]
[328913950,1717983156810,150.0,0.00012,2]
[328913951,1717983156833,150.0,0.00012,2]
[328913952,1717983156857,150.0,0.00012,2]
[328913953,1717983156881,150.0,0.00012,2]
[328913954,1717983156903,150.0,0.00012,2]
[328913955,1717983156927,28.83034579,0.00012,2]
[328913956,1717983159690,121.16965421,0.00012,2]
[328913957,1717983159723,150.0,0.00012,2]
[328913958,1717983159749,262.54383552,0.00012,2]
[328913959,1717983159777,9163.26606346,0.00012,2]
[328913960,1717983160344,155.28437853,0.00012,2]
[328913961,1717983211868,559.69086247,9e-05,2]
[328913962,1717983216636,482.00237009,8.999e-05,2]
[328913963,1717983217934,1067.75598538,8.999e-05,2]
[328913964,1717983271305,1425.2107939,6.94e-05,2]
[328913965,1717983272246,551.33947708,0.00012,2]
[328913967,1717983294242,552.54435949,0.0001,2]
[328913968,1717983299415,2961.95672666,0.0003,120]
[328913969,1717983309141,19697.56605262,8.999e-05,2]
[328913970,1717983331581,2394.01705133,0.000101,2]
[328913971,1717983333952,2145.58117584,0.00012434,2]
[328913972,1717983355974,300.34595867,0.0001,2]
[328913973,1717983356944,155.04215131,0.0001,2]
[328913974,1717983371417,181.04807537,0.0001,2]
[328913975,1717983387736,290.49576393,0.0001,2]
[328913976,1717983405154,1108.382344,0.00012465,2]
[328913977,1717983426379,150.0,0.00012428,2]
[328913978,1717983426404,150.0,0.00012428,2]
[328913979,1717983426429,37.94726431,0.00012428,2]
[328913980,1717983427260,112.05273569,0.00012427,2]
[328913981,1717983427286,84.03747003,0.00012427,2]
[328913982,1717983433339,65.96252997,0.0001243,2]
[328913983,1717983433362,130.12767574,0.0001243,2]
[328913984,1717983435039,160.48776224,0.0001,2]
[328913985,1717983435065,49.23065516,0.0001,2]
[328913986,1717983443971,299.71922881,0.00012427,2]
[328913987,1717983461366,500.0,0.00012,2]
[328913988,1717983462516,500.0,0.00012,2]
[328913989,1717983462975,500.0,0.00012,2]
[328913990,1717983463323,500.0,0.00012,2]
[328913991,1717983464448,500.0,0.00012,2]
[328913992,1717983464902,734.0,0.00012,2]
[328913993,1717983469678,4002.84,0.0003,90]
[328913994,1717983556495,178.27,0.00012481,2]
[328913995,1717983578145,2138.20030163,0.000125,2]
[328913996,1717983584831,1211.12212295,0.000125,2]
[328913997,1717983586940,1053.10914453,0.000125,2]
[328913998,1717983588858,268.74584708,0.000125,2]
[328913999,1717983590574,1277.25177394,0.000125,2]
[328914000,1717983590878,155.0,0.000125,2]
[328914001,1717983591020,659.07845299,0.000125,2]
[328914002,1717983591076,626.22089567,0.000125,2]
[328914003,1717983592073,201.67489333,0.000125,2]
[328914004,1717983603666,506.80366576,0.000125,2]
[328914005,1717983606533,2194.64407392,0.000125,2]
[328914006,1717983607953,307.45960582,0.000125,2]
[328914007,1717983608518,1249.34786736,0.000125,2]
[328914008,1717983617082,206.03170677,0.000125,2]
[328914009,1717983618087,155.0,0.000125,2]
[328914010,1717983623304,1625.30453105,0.000125,2]
[328914011,1717983626034,1014.24874889,0.000125,2]
[328914012,1717983664442,800.0,0.00026,30]
[328914013,1717983752356,164.0,9.992e-05,2]
[328914014,1717983773992,423.95,0.0001058,2]
[328914015,1717983807860,21773.7,0.00012474,2]
[328914016,1717983819680,1118.83,0.0003,90]
[328914017,1717983828642,206.03170677,0.000125,2]
[328914018,1717983862905,1850.0,0.0003,120]
[328914019,1717983905162,150.0,0.00012493,2]
[328914020,1717983966653,168.39,0.000125,2]
[328914021,1717983969535,1053.10914453,0.000125,2]
[328914022,1717983991712,250.0,0.00012473,2]
[328914023,1717984046166,-482.00237009,0.00012501,2]
[328914024,1717984046191,-864.61064937,0.00012501,2]
[328914025,1717984046217,-296.81340302,0.00012501,2]
[328914026,1717984046242,-178.27,0.00012502,2]
[328914027,1717984046266,-3136.42,0.00012508,2]
[328914028,1717984046291,-148.57651118,0.00012521,2]
[328914029,1717984084835,683.92965723,0.00026,30]
[328914032,1717984126768,161.94729935,0.00012423,2]
[328914037,1717984148143,-651.42348882,0.00012521,2]
[328914038,1717984148166,-178.27,0.00012523,2]
[328914039,1717984148187,-736.97609145,0.00012524,2]
[328914040,1717984155124,-3844.72543038,0.00012524,2]
[328914041,1717984155147,-786.3940397,0.00012527,2]
[328914042,1717984155171,-568.08,0.00012527,2]
[328914043,1717984155195,-150.0,0.00012528,2]
[328914044,1717984155217,-2370.77689173,0.00012529,2]
[328914045,1717984155240,-300.0,0.00012543,2]
[328914046,1717984155264,-178.27,0.00012544,2]
[328914047,1717984155286,-499.99,0.00012544,2]
[328914048,1717984155310,-1429.49,0.00012544,2]
[328914049,1717984155332,-250.0,0.00012559,2]
[328914050,1717984155355,-177.97,0.00012594,2]
[328914051,1717984155377,-148.47147454,0.00012594,2]
[328914070,1717984233426,-2.51852546,0.00012594,2]
[328914071,1717984233436,-155.0,0.00012792,2]
[328914072,1717984233446,-170.13,0.00012793,2]
[328914073,1717984233456,-423.95,0.00012844,2]
[328914074,1717984233466,-376.0,0.00013,2]
[328914075,1717984233476,-1306.36010013,0.00013297,2]
[328914076,1717984233487,-145.17161729,0.00013438,2]
[328914077,1717984233499,-58.42069641,0.00013438,2]
[328914078,1717984233509,-319.5,0.00013699,2]
[328914079,1717984233519,-167.0,0.00013699,2]
[328914080,1717984233530,-539.07930367,0.00013699,2]
[328914081,1717984233542,-1533.16988502,0.00013699,2]
[328914082,1717984233554,-9317.23751131,0.00013699,2]
[328914083,1717984233565,-387.26403017,0.0001378,2]
[328914084,1717984233574,-499.99,0.0001378,2]
[328914085,1717984233584,-210.0,0.00013781,2]
[328914086,1717984233595,-393.58905365,0.000138,2]
[328914087,1717984233606,-455.09434858,0.000138,2]
[328914088,1717984233616,-380.97622886,0.0001386,2]
[328914089,1717984233824,-464.34730983,0.0001386,2]
[328914090,1717984233836,-442.695,0.0001386,2]
[328914091,1717984233848,-644.06291131,0.0001386,2]
[328914092,1717984233858,-460.7817,0.00013898,2]
[328914093,1717984233869,-1416.216,0.00013899,2]
[328914094,1717984233879,-1132.42839464,0.000139,2]
[328914095,1717984233889,-1000.0,0.000139,2]
[328914096,1717984233900,-588.2697,0.000139,2]
[328914097,1717984233910,-157.60377456,0.000139,2]
[328914098,1717984233920,-347.3351,0.000139,2]
[328914099,1717984233930,-3629.3059,0.000139,2]
[328914100,1717984233940,-188.80861575,0.000139,2]
[328914101,1717984234111,-172.11211677,0.000139,2]
[328914102,1717984234126,-161.94729934,0.000139,2]
[328914103,1717984234137,-1532.0363,0.000139,2]
[328914104,1717984234147,-212.70789615,0.000139,2]
[328914105,1717984234157,-331.24912733,0.000139,2]
[328914106,1717984234167,-2136.02225461,0.000139,2]
[328914107,1717984234177,-214.71849054,0.000139,2]
[328914108,1717984234188,-199.74155669,0.000139,2]
[328914109,1717984234198,-173.70498576,0.0001399,2]
[328914110,1717984234209,-408.70433109,0.00013997,2]
[328914111,1717984234220,-335.03199574,0.00013997,2]
[328914112,1717984234230,-3107.38825477,0.00013997,2]
[328914113,1717984234239,-2073.67367214,0.00013997,2]
[328914114,1717984234253,-752.35031756,0.00013997,2]
[328914115,1717984234265,-446.45853724,0.00013997,2]
[328914116,1717984234277,-1188.75510535,0.00013997,2]
[328914117,1717984234287,-1070.49455308,0.00013997,2]
[328914118,1717984234297,-1030.48613738,0.00013998,2]
[328914119,1717984234310,-1802.07465167,0.00013998,2]
[328914120,1717984234320,-155.3993041,0.00013998,2]
[328914121,1717984234330,-153.37698155,0.00013998,2]
[328914122,1717984234342,-407.44106543,0.00013998,2]
[328914123,1717984234354,-695.58883899,0.00013998,2]
[328914124,1717984234364,-35.73116101,0.00013998,2]
[328914125,1717984234376,-606.4,0.00013998,2]
[328914126,1717984234400,-1062.65018491,0.00013998,2]
[328914127,1717984234410,-155.88769497,0.00013998,2]
[328914128,1717984234420,-170.40459741,0.00013998,2]
[328914129,1717984234430,-1278.38638482,0.00013998,2]
[328914130,1717984234439,-264.88490543,0.00013998,2]
[328914131,1717984234449,-654.62142591,0.00013998,2]
[328914132,1717984234458,-226.34469003,0.00013998,2]
[328914133,1717984234470,-496.29675969,0.00013998,2]
[328914134,1717984234494,-22.67616186,0.00013998,2]
[328914135,1717984234506,-912.25349106,0.00013998,2]
[328914136,1717984234515,-384.89217737,0.00013998,2]
[328914137,1717984234526,-441.29389897,0.00013998,2]
[328914138,1717984234536,-155.28468322,0.00013998,2]
[328914139,1717984234546,-1629.13176585,0.00013998,2]
[328914140,1717984234557,-268.79838147,0.00013998,2]
[328914141,1717984234567,-628.79368124,0.00013998,2]
[328914142,1717984234579,-1001.71126003,0.00013998,2]
[328914143,1717984234590,-864.80604152,0.00013998,2]
[328914144,1717984234601,-451.79619489,0.00013998,2]
[328914145,1717984234612,-308.17981469,0.00013998,2]
[328914146,1717984234623,-294.35780961,0.00013999,2]
[328914147,1717984234636,-7933.50080004,0.00014,2]
[328914148,1717984234651,-568.36,0.00014,2]
[328914149,1717984234664,-1299.36139735,0.00014,2]
[328914173,1717984239391,-498.77426483,0.00014,2]
[328914174,1717984240084,-33438.87157467,0.00014,2]
[328914175,1717984240097,-1624.56817508,0.00014,2]
[328914176,1717984240134,-4050.31477294,0.00014,2]
[328914186,1717984245602,-84885.96196039,0.00014,2]
[328914187,1717984245616,-1918.59813098,0.00014,2]
[328914188,1717984246045,-509.999985,0.00014,2]
[328914189,1717984246060,-2123.63533016,0.00014,2]
[328914190,1717984246072,-333.23209839,0.00014,2]
[328914191,1717984246096,-6619.56690201,0.00014,2]
[328914192,1717984246109,-2174.42990292,0.00014,2]
[328914193,1717984246121,-848.067256,0.00014,2]
[328914194,1717984246473,-2150.6990812,0.00014,2]
[328914195,1717984246485,-1999.7835296,0.00014,2]
[328914201,1717984247795,-155.0,0.00013999,2]
[328914202,1717984247805,-155.0,0.00013999,2]
[328914203,1717984247815,-790.8999995,0.00014,2]
[328914204,1717984247840,-0.01437436,0.00014,2]
[328914205,1717984248666,-277728.69148606,0.00014,2]
[328914206,1717984248721,-3729.34593696,0.00014,2]
[328914207,1717984254141,-474.60087684,0.00014,2]
[328914208,1717984254153,-605.95602663,0.00014,2]
[328914209,1717984254613,-11032.82651232,0.00014,2]
[328914210,1717984255044,-29540.01982268,0.00014,2]
[328914211,1717984255056,-20913.8813418,0.00014,2]
[328914213,1717984301374,285.03,0.00026922,120]
[328914214,1717984301714,285.03,0.00029614,120]
[328914230,1717985140136,-155.0,0.00013786,2]
[328914231,1717985140159,-587.90828652,0.00013787,2]
[328914234,1717985313845,152.74139469,0.0003,90]
[328914237,1717985399120,344.99,0.0003,120]
[328914240,1717985432938,-410.41420493,0.00013771,2]
[328914241,1717985432951,-569.99999994,0.00013771,2]
[328914242,1717985432963,-351.899999,0.00013771,2]
[328914243,1717985432976,-2054.51640893,0.00013771,2]
[328914244,1717985432986,-2822.74124506,0.00013772,2]
[328914245,1717985432996,-688.78661675,0.00013772,2]
[328914246,1717985433006,-4291.83751585,0.00013772,2]
[328914247,1717985433015,-300.0,0.00013774,2]
[328914248,1717985433025,-300.0,0.00013774,2]
[328914249,1717985433035,-1610.06788,0.0001386,2]
[328914250,1717985433044,-543.09853724,0.00013898,2]
[328914251,1717985433056,-682.88911887,0.00013898,2]
[328914252,1717985433067,-1276.71140513,0.00013898,2]
[328914253,1717985433077,-787.31172062,0.00013898,2]
[328914254,1717985433087,-234.66797801,0.00013898,2]
[328914255,1717985433096,-4819.11511631,0.00013898,2]
[328914256,1717985433109,-398.37211151,0.00013898,2]
[328914257,1717985433121,-5601.48418819,0.00013898,2]
[328914258,1717985433131,-2299.53757862,0.00013899,2]
[328914259,1717985433141,-187.87867924,0.00013899,2]
[328914260,1717985433152,-687.6003,0.000139,2]
[328914261,1717985433161,-1469.41325066,0.000139,2]
[328914262,1717985433333,-732.11388169,0.000139,2]
[328914263,1717985433345,-560.2023371,0.000139,2]
[328914264,1717985433356,-584.31,0.000139,2]
[328914265,1717985433367,-34066.91329887,0.000139,2]
[328914266,1717985433379,-1420.97727954,0.000139,2]
[328914267,1717985433390,-1433.51391152,0.000139,2]
[328914268,1717985433403,-18762.08940248,0.000139,2]
[328914269,1717985433414,-422.76314946,0.000139,2]
[328914270,1717985433427,-2478.29101073,0.000139,2]
[328914271,1717985433438,-556.70320369,0.000139,2]
[328914272,1717985433450,-521.97670531,0.000139,2]
[328914273,1717985433461,-315.0,0.000139,2]
[328914274,1717985433741,-2719.05049637,0.000139,2]
[328914275,1717985433753,-474.46635641,0.000139,2]
[328914276,1717985433767,-2360.35387545,0.000139,2]
[328914277,1717985433779,-1339.32568212,0.000139,2]
[328914278,1717985433791,-20906.75793379,0.000139,2]
[328914279,1717985433802,-351.68374011,0.000139,2]
[328914280,1717985433813,-78699.10507935,0.000139,2]
[328914281,1717985433825,-297.182565,0.000139,2]
[328914326,1717985438677,-5420.42198793,0.000139,2]
[328914328,1717985438692,-1236.89030779,0.000139,2]
[328914330,1717985438704,-1275.36257132,0.000139,2]
[328914331,1717985438716,-277.32929253,0.000139,2]
[328914332,1717985438728,-1651.94935281,0.000139,2]
[328914333,1717985438741,-1145.08013776,0.000139,2]
[328914334,1717985439128,-620.38511267,0.000139,2]
[328914335,1717985439141,-16318.24771686,0.000139,2]
[328914336,1717985439153,-548.09566506,0.000139,2]
[328914337,1717985439165,-2072.10473281,0.000139,2]
[328914338,1717985439178,-1392.37172164,0.000139,2]
[328914339,1717985439193,-785.23100942,0.000139,2]
[328914340,1717985439205,-1637.09935816,0.000139,2]
[328914341,1717985439218,-10543.96539995,0.000139,2]
[328914342,1717985439230,-494.72760592,0.000139,2]
[328914343,1717985439243,-29108.54486772,0.000139,2]
[328914344,1717985439253,-14637.6274,0.000139,2]
[328914345,1717985439263,-163.05049633,0.000139,2]
[328914346,1717985439274,-188.80861575,0.000139,2]
[328914347,1717985439285,-1150.79696713,0.00013998,2]
[328914348,1717985439295,-3075.90590176,0.00013998,2]
[328914349,1717985439306,-476.76411408,0.00013998,2]
[328914350,1717985439317,-850.2441167,0.00013998,2]
[328914351,1717985439328,-1427.04327615,0.00013998,2]
[328914352,1717985439338,-156.67264725,0.00013999,2]
[328914353,1717985439349,-267.59800873,0.00013999,2]
[328914354,1717985439360,-191.22,0.00013999,2]
[328914355,1717985439371,-834227.08936057,0.00014,2]
[328914356,1717985439384,-4440.864085,0.00014,2]
[328914358,1717985439595,-2289.61472147,0.00014,2]
[328914360,1717985439607,-746.89027862,0.00014,2]
[328914361,1717985439619,-2145.76887824,0.00014,2]
[328914536,1717985442740,-243.27091703,0.00013999,2]
[328914537,1717985442752,-8591.02078568,0.00014,2]
[328914538,1717985443206,-3885.68981645,0.00014,2]
[328914540,1717985443219,-754.4407858,0.00014,2]
[328914541,1717985443230,-744.3412483,0.00014,2]
[328914542,1717985443242,-2783.491123,0.00014,2]
[328914543,1717985443253,-912.65155123,0.00014,2]
[328914544,1717985443264,-681.43362743,0.00014,2]
[328914545,1717985443275,-1490.31169627,0.00014,2]
[328914546,1717985443286,-667.35421737,0.00014,2]
[328914548,1717985443647,-436.79089378,0.00014,2]
[328914550,1717985443659,-51450.38497916,0.00014,2]
[328914551,1717985443670,-691.18216968,0.00014,2]
[328914552,1717985444167,-368.59145831,0.00014,2]
[328914553,1717985444179,-1932.25,0.00014,2]
[328914554,1717985444191,-155744.35527606,0.00014,2]
[328914555,1717985444526,-269.7076394,0.00014,2]
[328914556,1717985444539,-935.22606069,0.00014,2]
[328914557,1717985444551,-316.156902,0.00014,2]
[328914558,1717985444562,-447.11137138,0.00014,2]
[328914559,1717985444575,-25676.40889033,0.00014,2]
[328914560,1717985444586,-108698.92257614,0.00014,2]
[328914561,1717985445045,-47216.51997034,0.00014,2]
[328914574,1717985445628,-105555.57891009,0.00014,2]
[328914638,1717985446614,-3625.5733598,0.00014,2]
[328914639,1717985446626,-620.53980725,0.00014,2]
[328914640,1717985446867,-455.92453469,0.00014,2]
[328914641,1717985446878,-713.10704317,0.00014,2]
[328914642,1717985446890,-1768.64,0.00014,2]
[328914643,1717985447105,-12559.67534807,0.00014,2]
[328914644,1717985447117,-379.34260769,0.00014,2]
[328914645,1717985447129,-1650.24238056,0.00014,2]
[328914646,1717985447351,-1250.61127231,0.00013999,2]
[328914647,1717985447361,-1688.41713942,0.00014,2]
[328914648,1717985447373,-5674.93048505,0.00014,2]
[328914649,1717985490274,334.73273971,0.00012458,2]
[328914655,1717986090785,150.0,0.00028776,120]
[328914656,1717986133560,481.8,0.00011594,2]
[328914658,1717986206520,201.57646614,0.0003,90]
[328914659,1717986262574,400.0,0.0003,120]
[328914660,1717986357169,-383.24420273,0.00013275,2]
[328914666,1717986446808,-1000.0,0.00013186,2]
[328914667,1717986446833,-15910.0,0.00013269,2]
[328914676,1717986633324,-250.0,0.00012807,2]
[328914677,1717986633335,-159.12146104,0.0001283,2]
[328914678,1717986633349,-90.87853896,0.0001283,2]
[328914679,1717986633360,-300.0,0.00013267,2]
[328914680,1717986633369,-183.45117479,0.00013268,2]
[328914681,1717986633382,-2412.37521034,0.00013268,2]
[328914682,1717986633394,-514.29235671,0.00013268,2]
[328914683,1717986633801,-32378.32710906,0.00013268,2]
[328914684,1717986633811,-12340.29293232,0.00013269,2]
[328914685,1717986633824,-13928.36902647,0.00013269,2]
[328914686,1717986633836,-22592.65279853,0.00013269,2]
[328914687,1717986633848,-3880.42848261,0.00013269,2]
[328914688,1717986633860,-505.97233776,0.00013269,2]
[328914697,1717986639258,-332.57131004,0.00013269,2]
[328914698,1717986639288,-2349.40480559,0.00013269,2]
[328914699,1717986639303,-421.399227,0.00013269,2]
[328914700,1717986639911,-254148.99025288,0.00013269,2]
[328914701,1717986639921,-9470.44,0.0001327,2]
[328914702,1717986639931,-134.38579727,0.00013275,2]
[328914703,1717986639941,-2311.44,0.00013314,2]
[328914704,1717986639951,-182.83,0.00013314,2]
[328914705,1717986639961,-625.63244102,0.00013438,2]
[328914706,1717986639970,-154.54,0.00013487,2]
[328914707,1717986639980,-2466.63,0.00013487,2]
[328914708,1717986639990,-154.54,0.00013533,2]
[328914709,1717986640000,-154.54,0.0001358,2]
[328914710,1717986640010,-2171.82,0.0001358,2]
[328914711,1717986640020,-154.54,0.00013627,2]
[328914712,1717986640031,-154.54,0.00013674,2]
[328914713,1717986640041,-1985.75,0.00013699,2]
[328914714,1717986640053,-180.19,0.00013699,2]
[328914715,1717986640064,-351.51832432,0.000137,2]
[328914716,1717986640074,-154.54,0.00013721,2]
[328914717,1717986640085,-154.54,0.00013768,2]
[328914718,1717986640095,-499.99,0.00013799,2]
[328914719,1717986640106,-245000.0,0.000138,2]
[328914720,1717986640116,-385.85455963,0.000138,2]
[328914721,1717986640127,-154.54,0.00013814,2]
[328914722,1717986640137,-481.8,0.00013858,2]
[328914723,1717986640148,-732.86152334,0.0001386,2]
[328914724,1717986640158,-154.54,0.00013861,2]
[328914725,1717986640169,-500.0,0.00013887,2]
[328914726,1717986640179,-200.0,0.00013888,2]
[328914727,1717986640190,-1000.0,0.00013888,2]
[328914728,1717986640200,-500.0,0.00013888,2]
[328914729,1717986640211,-500.0,0.00013888,2]
[328914730,1717986640221,-200.0,0.00013888,2]
[328914731,1717986640231,-757.34625938,0.000139,2]
[328914732,1717986640240,-14637.6274,0.000139,2]
[328914733,1717986640250,-163.05049633,0.000139,2]
[328914734,1717986640260,-188.80861575,0.000139,2]
[328914735,1717986640272,-1424.0148364,0.000139,2]
[328914736,1717986640286,-154.54,0.00013908,2]
[328914737,1717986640296,-216.25213631,0.00013923,2]
[328914738,1717986640306,-154.54,0.00013955,2]
[328914739,1717986640316,-689.62503831,0.00013998,2]
[328914740,1717986640327,-3358.32320364,0.00013998,2]
[328914741,1717986640337,-1427.04327615,0.00013998,2]
[328914742,1717986640348,-476.76411408,0.00013998,2]
[328914743,1717986640358,-156.67264725,0.00013998,2]
[328914744,1717986640370,-1150.79696713,0.00013998,2]
[328914745,1717986640381,-1375.12507657,0.00013998,2]
[328914746,1717986640391,-3075.90590176,0.00013998,2]
[328914747,1717986640401,-1190.48657198,0.00013999,2]
[328914748,1717986640411,-245.48247082,0.00013999,2]
[328914749,1717986640420,-398214.34557268,0.00014,2]
[328914750,1717986640433,-6081.73346951,0.00014,2]
[328914751,1717986640595,-19704.1877457,0.00014,2]
[328914753,1717986640608,-1539.6968488,0.00014,2]
[328914772,1717986643140,-270.0307179,0.00013999,2]
[328914774,1717986643151,-483.18928209,0.00014,2]
[328914780,1717986643686,-2078.076,0.00014,2]
[328914782,1717986643698,-4658.37809792,0.00014,2]
[328914785,1717986644247,-489776.79648643,0.00014,2]
[328914786,1717986644856,-47216.51997034,0.00014,2]
[328914787,1717986644893,-4.74011279,0.00014,2]
[328914788,1717986644905,-240424.94225838,0.00014,2]